bitfinex-derivatives/quotes_BTCF0:USTF0_20230106
["timestamp","ask_amount","ask_price","bid_price","bid_amount"]
[1673041702661,0.3147,16933.0,16932.0,0.243]
[1673041703814,0.3047,16933.0,16932.0,0.221]
[1673041704778,0.004,16933.0,16932.0,0.221]
[1673041704975,0.3047,16933.0,16932.0,0.221]
[1673041707918,0.3047,16933.0,16932.0,0.021]
[1673041720127,0.004,16933.0,16932.0,0.021]
[1673041720329,0.3047,16933.0,16932.0,0.021]
[1673041721380,0.4297,16933.0,16932.0,0.004]
[1673041722751,0.4297,16933.0,16932.0,0.00383031]
[1673041727374,0.7304,16933.0,16932.0,0.00383031]
[1673041732314,0.4297,16933.0,16932.0,0.00383031]
[1673041742515,0.129,16933.0,16932.0,0.00383031]
[1673041748394,0.129,16933.0,16932.0,0.30453031]
[1673041768899,0.129,16933.0,16932.0,0.30440788]
[1673041777102,0.129,16933.0,16932.0,0.00370788]
[1673041784995,0.4297,16933.0,16932.0,0.00370788]
[1673041817566,0.129,16933.0,16932.0,0.00370788]
[1673041821247,0.129,16933.0,16932.0,0.00352536]
[1673041840891,0.129,16933.0,16932.0,0.30422536]
[1673041845415,0.11718842,16933.0,16932.0,0.30422536]
[1673041846249,0.11718842,16933.0,16932.0,0.89482536]
[1673041856974,0.11718842,16933.0,16932.0,0.59412536]
[1673041857289,0.11718842,16933.0,16932.0,0.89482536]
[1673041886522,0.11718842,16933.0,16932.0,0.98297998]
[1673041886721,0.11718842,16933.0,16932.0,0.89482536]
[1673041886933,0.11718842,16933.0,16932.0,0.98297998]
[1673041888519,0.11718842,16933.0,16932.0,0.89482536]
[1673041897774,0.11718842,16933.0,16932.0,0.89461066]
[1673041905231,0.11718842,16933.0,16932.0,0.30401066]
[1673041911328,0.11718842,16933.0,16932.0,0.00331066]
[1673041936774,0.11702938,16933.0,16932.0,0.00331066]
[1673041945183,0.11702938,16933.0,16932.0,0.30401066]
[1673041957804,0.11702938,16933.0,16932.0,0.00331066]
[1673041974106,0.11702938,16933.0,16932.0,0.30401066]
[1673041977273,0.11702938,16933.0,16932.0,0.00331066]
[1673041977469,0.11702938,16933.0,16932.0,0.30401066]
[1673041977999,0.11702938,16933.0,16932.0,0.00331066]
[1673041978206,0.11702938,16933.0,16932.0,0.30401066]
[1673041979993,0.11702938,16933.0,16932.0,0.00331066]
[1673041980208,0.11702938,16933.0,16932.0,0.30401066]
[1673041984513,0.11702938,16933.0,16932.0,0.30378374]
[1673041992715,0.11702938,16933.0,16932.0,0.00308374]
[1673041993027,0.11702938,16933.0,16932.0,0.30378374]
[1673041994184,0.11702938,16933.0,16932.0,0.00308374]
[1673041994391,0.11702938,16933.0,16932.0,0.30378374]
[1673042000914,0.11702938,16933.0,16932.0,0.00308374]
[1673042001125,0.11702938,16933.0,16932.0,0.30378374]
[1673042008583,0.11693284,16933.0,16932.0,0.30378374]
[1673042009844,0.11693284,16933.0,16932.0,0.00308374]
[1673042010056,0.11693284,16933.0,16932.0,0.30378374]
[1673042024982,0.11693284,16933.0,16932.0,0.60448374]
[1673042029608,0.11693284,16933.0,16932.0,0.00308374]
[1673042029822,0.11693284,16933.0,16932.0,0.30378374]
[1673042034138,0.11693284,16933.0,16932.0,0.00308374]
[1673042034448,0.11693284,16933.0,16932.0,0.30378374]
[1673042038446,0.11693284,16933.0,16932.0,0.74698374]
[1673042038755,0.11693284,16933.0,16932.0,0.84698374]
[1673042043273,0.11693284,16933.0,16932.0,1.73388374]
[1673042051791,0.11693284,16933.0,16932.0,0.84658374]
[1673042056719,0.11693284,16933.0,16932.0,0.84641399]
[1673042057784,0.11693284,16933.0,16932.0,0.54571399]
[1673042057993,0.11693284,16933.0,16932.0,1.14711399]
[1673042068908,0.11693284,16933.0,16932.0,0.54571399]
[1673042069123,0.11693284,16933.0,16932.0,1.14711399]
[1673042070497,0.11693284,16933.0,16932.0,0.54571399]
[1673042070715,0.11693284,16933.0,16932.0,1.14711399]
[1673042071448,0.11693284,16933.0,16932.0,1.73771399]
[1673042073759,0.11693284,16933.0,16932.0,1.43701399]
[1673042074079,0.11693284,16933.0,16932.0,1.73771399]
[1673042077846,0.11693284,16933.0,16932.0,1.13631399]
[1673042078056,0.11693284,16933.0,16932.0,1.73771399]
[1673042082699,0.11693284,16933.0,16932.0,1.13631399]
[1673042082898,0.11693284,16933.0,16932.0,1.73771399]
[1673042086478,0.11693284,16933.0,16932.0,1.82586861]
[1673042086686,0.11693284,16933.0,16932.0,1.73771399]
[1673042087740,0.11693284,16933.0,16932.0,1.82586861]
[1673042089411,0.11693284,16933.0,16932.0,2.71266861]
[1673042089619,0.11693284,16933.0,16932.0,2.71316861]
[1673042090890,0.11693284,16933.0,16932.0,1.73761399]
[1673042092151,0.11693284,16933.0,16932.0,1.82576861]
[1673042092897,0.11693284,16933.0,16932.0,1.73761399]
[1673042100982,0.11693284,16933.0,16932.0,1.95762681]
[1673042101400,0.11693284,16933.0,16932.0,1.82576861]
[1673042101719,0.11693284,16933.0,16932.0,1.73761399]
[1673042103829,0.11693284,16933.0,16932.0,1.82576861]
[1673042105620,0.11693284,16933.0,16932.0,1.23516861]
[1673042105932,0.11693284,16933.0,16932.0,1.14701399]
[1673042107507,0.11693284,16933.0,16932.0,1.23516861]
[1673042108554,0.11693284,16933.0,16932.0,1.14701399]
[1673042109511,0.11693284,16933.0,16932.0,1.14683371]
[1673042116023,0.11693284,16933.0,16932.0,0.99913371]
[1673042124847,0.11693284,16933.0,16932.0,0.69843371]
[1673042132436,0.3,16936.0,16933.0,0.1473]
[1673042132643,0.3,16936.0,16935.0,0.1473]
[1673042133583,0.436,16936.0,16935.0,0.1473]
[1673042134004,0.436,16936.0,16935.0,0.1503]
[1673042138318,0.43579829,16936.0,16935.0,0.1503]
[1673042143048,0.136,16936.0,16935.0,0.1503]
[1673042151768,0.136,16936.0,16935.0,0.1504]
[1673042161852,0.136,16936.0,16935.0,0.1508]
[1673042181401,0.136,16936.0,16935.0,0.4515]
[1673042181819,0.136,16936.0,16935.0,0.5993]
[1673042184877,0.136,16936.0,16935.0,0.59920634]
[1673042185287,0.136,16936.0,16935.0,0.74550634]
[1673042187934,0.136,16936.0,16935.0,0.84550634]
[1673042189399,0.136,16936.0,16935.0,0.84570805]
[1673042189715,0.136,16936.0,16935.0,0.39870805]
[1673042194230,0.5845,16936.0,16935.0,0.00290634]
[1673042194647,0.4367,16936.0,16935.0,0.15070634]
[1673042197275,0.4367,16936.0,16935.0,0.00290634]
[1673042197276,0.5845,16936.0,16935.0,0.00290634]
[1673042215047,0.8852,16936.0,16935.0,0.00290634]
[1673042217256,0.8852,16936.0,16935.0,0.00310805]
[1673042219895,0.8852,16936.0,16935.0,0.00290634]
[1673042220317,1.033,16936.0,16932.0,0.00020171]
[1673042220522,0.4485,16933.0,16932.0,0.00020171]
[1673042221463,0.7492,16933.0,16932.0,0.00020171]
[1673042223051,0.7592,16933.0,16932.0,0.00020171]
[1673042223360,0.8482,16933.0,16932.0,0.00020171]
[1673042231758,0.8474,16933.0,16930.0,0.00020171]
[1673042231970,0.3007,16931.0,16930.0,0.00020171]
[1673042232284,0.4485,16931.0,16930.0,0.00020171]
[1673042233122,0.4585,16931.0,16930.0,0.00020171]
[1673042240487,0.3107,16931.0,16930.0,0.00020171]
[1673042241851,0.3107,16931.0,16930.0,0.14800171]
[1673042242793,0.3107,16931.0,16930.0,0.14690171]
[1673042243529,0.01,16931.0,16930.0,1.04260171]
[1673042251727,0.01,16931.0,16930.0,0.89540171]
[1673042256876,0.01,16931.0,16930.0,1.04320171]
[1673042257088,0.00709366,16931.0,16930.0,1.04320171]
[1673042259825,0.00709366,16931.0,16930.0,0.74250171]
[1673042260039,0.00709366,16931.0,16930.0,1.04320171]
[1673042265710,0.00709366,16931.0,16930.0,1.63380171]
[1673042266122,0.00709366,16931.0,16930.0,2.52010171]
[1673042267189,0.3007,16935.0,16931.0,0.2]
[1673042267383,0.3007,16935.0,16934.0,0.29460171]
[1673042267594,0.6014,16938.0,16934.0,0.49460171]
[1673042267811,0.6014,16938.0,16937.0,0.1478]
[1673042268231,0.6014,16938.0,16937.0,0.2955]
[1673042269602,0.7384,16938.0,16937.0,0.2965]
[1673042270549,0.7384,16938.0,16937.0,0.2955]
[1673042270747,0.7374,16938.0,16937.0,0.2965]
[1673042271804,0.7374,16938.0,16937.0,0.148]
[1673042279895,0.136,16938.0,16937.0,0.148]
[1673042280108,0.7374,16938.0,16937.0,0.148]
[1673042281796,0.7374,16938.0,16937.0,0.1488]
[1673042285267,0.4367,16938.0,16937.0,0.2953]
[1673042285479,0.4367,16938.0,16937.0,0.29550171]
[1673042287473,0.4367,16938.0,16937.0,0.29650171]
[1673042288523,0.4367,16938.0,16937.0,0.2963]
[1673042288729,0.4367,16938.0,16937.0,0.29650171]
[1673042289049,0.136,16938.0,16937.0,0.29650171]
[1673042293991,0.136,16938.0,16937.0,0.29850171]
[1673042295768,0.4367,16938.0,16937.0,0.29850171]
[1673042296396,0.3007,16938.0,16937.0,0.29450171]
[1673042296621,0.4367,16938.0,16937.0,0.29850171]
[1673042299243,0.4367,16938.0,16937.0,0.2983]
[1673042299453,0.4367,16938.0,16937.0,0.29850171]
[1673042301134,0.136,16938.0,16937.0,0.29850171]
[1673042307440,0.4367,16938.0,16937.0,0.29850171]
[1673042310482,0.136,16938.0,16937.0,0.29850171]
[1673042311113,0.136,16938.0,16937.0,0.44480171]
[1673042311326,0.136,16938.0,16937.0,0.64480171]
[1673042321846,0.136,16938.0,16937.0,1.53100171]
[1673042323418,0.136,16938.0,16937.0,2.12160171]
[1673042325828,0.136,16938.0,16937.0,2.42230171]
[1673042329947,0.136,16938.0,16937.0,3.30730171]
[1673042330992,0.3007,16942.0,16938.0,0.2]
[1673042331208,0.3007,16942.0,16941.0,0.1478]
[1673042331414,0.3007,16942.0,16941.0,0.24800171]
[1673042331739,0.3007,16942.0,16941.0,0.39580171]
[1673042332054,0.4357,16942.0,16941.0,0.39580171]
[1673042332465,0.3007,16942.0,16941.0,0.39580171]
[1673042332675,0.4357,16942.0,16941.0,0.40080171]
[1673042335831,0.135,16942.0,16941.0,0.40080171]
[1673042341732,0.135,16942.0,16941.0,0.25300171]
[1673042345199,0.4357,16942.0,16941.0,0.25300171]
[1673042350335,0.4357,16942.0,16941.0,0.1528]
[1673042351724,0.4357,16942.0,16941.0,0.1517]
[1673042352251,0.88329829,16942.0,16941.0,0.005]
[1673042357925,1.18399829,16942.0,16941.0,0.005]
[1673042359388,0.8842,16942.0,16941.0,0.005]
[1673042360444,0.7364,16942.0,16941.0,0.1517]
[1673042361701,0.7364,16942.0,16941.0,0.1528]
[1673042367178,0.4357,16942.0,16941.0,0.1528]
[1673042381674,0.4357,16942.0,16941.0,0.1516]
[1673042385270,0.4357,16942.0,16941.0,0.15180171]
[1673042391790,0.4357,16942.0,16941.0,0.15260171]
[1673042393047,0.4357,16942.0,16941.0,0.1524]
[1673042401768,0.4357,16942.0,16941.0,0.1528]
[1673042402194,0.4357,16942.0,16941.0,0.2528]
[1673042417764,0.4357,16942.0,16941.0,0.39989165]
[1673042420798,0.3007,16942.0,16941.0,0.395]
[1673042421008,0.4237,16942.0,16941.0,0.401]
[1673042422375,0.123,16942.0,16941.0,0.401]
[1673042429522,0.113,16942.0,16941.0,0.402]
[1673042430683,0.112,16942.0,16941.0,0.402]
[1673042434884,0.112,16942.0,16941.0,0.9926]
[1673042435515,0.112,16942.0,16941.0,0.99280171]
[1673042446657,0.112,16942.0,16941.0,1.29350171]
[1673042459587,0.112,16942.0,16941.0,0.99280171]
[1673042469784,0.3007,16944.0,16943.0,0.2]
[1673042469990,0.3007,16944.0,16943.0,0.3478]
[1673042470836,0.4037,16944.0,16943.0,0.3548]
[1673042471683,0.4037,16944.0,16943.0,0.35457582]
[1673042481891,0.4037,16944.0,16943.0,0.50097582]
[1673042482625,0.103,16944.0,16943.0,0.50097582]
[1673042483464,0.094,16944.0,16943.0,0.50197582]
[1673042491774,0.094,16944.0,16943.0,0.35557582]
[1673042510170,0.3947,16944.0,16943.0,0.35557582]
[1673042511222,0.3947,16944.0,16943.0,0.35577753]
[1673042514582,0.094,16944.0,16943.0,0.35577753]
[1673042514799,0.3947,16944.0,16943.0,0.35577753]
[1673042521739,0.3947,16944.0,16943.0,0.50217753]
[1673042526159,0.094,16944.0,16943.0,0.50202072]
[1673042531834,0.094,16944.0,16943.0,0.50212072]
[1673042544970,0.094,16944.0,16943.0,0.64992072]
[1673042545502,0.094,16944.0,16943.0,1.53592072]
[1673042554127,0.094,16944.0,16943.0,2.12652072]
[1673042554649,0.094,16944.0,16943.0,2.12631901]
[1673042554862,0.094,16944.0,16943.0,2.12652072]
[1673042560211,0.094,16944.0,16943.0,2.42722072]
[1673042562205,0.09383204,16944.0,16943.0,2.42722072]
[1673042581766,0.09383204,16944.0,16943.0,2.42662072]
[1673042582077,0.09383204,16944.0,16943.0,2.42482072]
[1673042590159,0.09383204,16944.0,16943.0,2.51297534]
[1673042591747,0.09383204,16944.0,16943.0,3.39977534]
[1673042592482,0.086,16944.0,16943.0,3.40077534]
[1673042603822,0.086,16944.0,16943.0,3.31262072]
[1673042611717,0.086,16944.0,16943.0,3.39987534]
[1673042611927,0.086,16944.0,16943.0,3.53173354]
[1673042613391,0.086,16944.0,16943.0,3.39987534]
[1673042616026,0.086,16944.0,16943.0,3.39979411]
[1673042619285,0.086,16944.0,16943.0,3.31163949]
[1673042619696,0.086,16944.0,16943.0,3.31413949]
[1673042622324,0.086,16944.0,16943.0,3.31393778]
[1673042622532,0.086,16944.0,16943.0,1.54003778]
[1673042627368,0.086,16944.0,16943.0,1.54023949]
[1673042627582,0.086,16944.0,16943.0,1.54043949]
[1673042629477,0.086,16944.0,16943.0,1.54023778]
[1673042634523,0.086,16944.0,16943.0,1.23953778]
[1673042634737,0.086,16944.0,16943.0,1.54023778]
[1673042641787,0.086,16944.0,16943.0,1.53963778]
[1673042650409,0.086,16944.0,16943.0,1.23893778]
[1673042650721,0.086,16944.0,16943.0,1.53963778]
[1673042665655,0.086,16944.0,16943.0,1.53943074]
[1673042679743,0.086,16944.0,16943.0,1.23873074]
[1673042681960,0.086,16944.0,16943.0,2.12553074]
[1673042687850,0.086,16944.0,16943.0,1.23873074]
[1673042691944,0.086,16944.0,16943.0,1.84013074]
[1673042695837,0.086,16944.0,16943.0,1.92828536]
[1673042696672,0.086,16944.0,16943.0,1.62758536]
[1673042696882,0.086,16944.0,16943.0,1.92828536]
[1673042697412,0.086,16944.0,16943.0,1.84013074]
[1673042699725,0.086,16944.0,16943.0,0.94963074]
[1673042709702,0.086,16944.0,16943.0,0.64893074]
[1673042717688,0.086,16944.0,16943.0,0.64871009]
[1673042723470,0.086,16944.0,16943.0,0.94941009]
[1673042723883,0.086,16944.0,16943.0,0.64871009]
[1673042724209,0.086,16944.0,16943.0,0.94941009]
[1673042738923,0.086,16944.0,16943.0,0.9496118]
[1673042739134,0.086,16944.0,16943.0,0.94941009]
[1673042739655,0.086,16944.0,16943.0,0.5016118]
[1673042743118,0.3867,16944.0,16943.0,0.5016118]
[1673042746068,0.086,16944.0,16943.0,0.5016118]
[1673042751845,0.086,16944.0,16943.0,0.5028118]
[1673042761723,0.086,16944.0,16943.0,0.5027118]
[1673042762042,0.086,16944.0,16943.0,0.50248062]
[1673042764138,0.086,16944.0,16943.0,0.35478062]
[1673042777802,0.086,16944.0,16943.0,0.50258062]
[1673042788636,0.3867,16944.0,16943.0,0.50258062]
[1673042797675,0.086,16944.0,16943.0,0.50237891]
[1673042797998,0.086,16944.0,16943.0,0.50258062]
[1673042803985,0.3867,16944.0,16943.0,0.50258062]
[1673042808925,0.3867,16944.0,16943.0,0.50248562]
[1673042809766,0.38650481,16944.0,16943.0,0.50248562]
[1673042819549,0.08580481,16944.0,16943.0,0.50248562]
[1673042819759,0.38650481,16944.0,16943.0,0.50248562]
[1673042819974,0.08580481,16944.0,16943.0,0.50248562]
[1673042820289,0.38650481,16944.0,16943.0,0.50248562]
[1673042826701,0.08580481,16944.0,16943.0,0.50248562]
[1673042826910,0.38650481,16944.0,16943.0,0.50248562]
[1673042838062,0.38650481,16944.0,16943.0,0.15700171]
[1673042839225,0.38650481,16944.0,16943.0,0.35700171]
[1673042841743,0.38650481,16944.0,16943.0,0.35650171]
[1673042852048,0.08580481,16944.0,16943.0,0.35650171]
[1673042852261,0.38650481,16944.0,16943.0,0.35650171]
[1673042853211,0.38650481,16944.0,16943.0,0.15650171]
[1673042856354,0.38650481,16944.0,16943.0,0.35650171]
[1673042857102,0.38650481,16944.0,16943.0,0.35639017]
[1673042859308,0.38650481,16944.0,16943.0,0.50419017]
[1673042861841,0.38650481,16944.0,16943.0,0.35639017]
[1673042881687,0.38650481,16944.0,16943.0,0.50419017]
[1673042884217,0.08580481,16944.0,16943.0,0.50419017]
[1673042887164,0.08580481,16944.0,16943.0,1.10419017]
[1673042897777,0.08580481,16944.0,16943.0,1.40489017]
[1673042901769,0.08580481,16944.0,16943.0,1.55239017]
[1673042904818,0.08580481,16944.0,16943.0,1.55229593]
[1673042907024,0.08557575,16944.0,16943.0,1.55229593]
[1673042919534,0.08557575,16944.0,16943.0,1.64045055]
[1673042919854,0.08557575,16944.0,16943.0,2.52715055]
[1673042922064,0.08557575,16944.0,16943.0,2.22645055]
[1673042922385,0.08557575,16944.0,16943.0,2.82785055]
[1673042923747,0.08557575,16944.0,16943.0,2.73969593]
[1673042923960,0.08557575,16944.0,16943.0,2.82785055]
[1673042924799,0.08557575,16944.0,16943.0,3.41845055]
[1673042926903,0.08557575,16944.0,16943.0,3.33029593]
[1673042928481,0.08557575,16944.0,16943.0,3.41845055]
[1673042929100,0.08557575,16944.0,16943.0,3.33029593]
[1673042934367,0.08557575,16944.0,16943.0,3.41845055]
[1673042935092,0.08557575,16944.0,16943.0,3.55030875]
[1673042936255,0.08557575,16944.0,16943.0,3.46215413]
[1673042937933,0.08557575,16944.0,16943.0,4.12619896]
[1673042938140,0.08557575,16944.0,16943.0,3.63796506]
[1673042938773,0.629,16949.0,16943.0,3.46035991]
[1673042938986,0.3007,16949.0,16948.0,0.1466]
[1673042939200,0.3007,16949.0,16948.0,0.3466]
[1673042939936,0.68849829,16949.0,16948.0,0.3466]
[1673042940141,0.60049829,16949.0,16948.0,0.3466]
[1673042940460,0.68849829,16949.0,16948.0,0.3556]
[1673042940983,0.3887,16949.0,16948.0,0.3556]
[1673042946229,0.088,16949.0,16948.0,0.3556]
[1673042946450,0.3887,16949.0,16948.0,0.3556]
[1673042957061,0.088,16949.0,16948.0,0.3556]
[1673042957483,0.3887,16949.0,16948.0,0.3556]
[1673042958638,0.3887,16949.0,16948.0,0.35543244]
[1673042962531,0.3887,16949.0,16948.0,0.15543244]
[1673042963164,0.68849829,16949.0,16948.0,0.15543244]
[1673042965684,0.38779829,16949.0,16948.0,0.15543244]
[1673042965894,0.68849829,16949.0,16948.0,0.15543244]
[1673042967573,0.3887,16949.0,16948.0,0.15543244]
[1673042968410,0.3747,16949.0,16948.0,0.15643244]
[1673042979031,0.074,16949.0,16948.0,0.15643244]
[1673042979344,0.3747,16949.0,16948.0,0.15643244]
[1673042985339,0.3747,16949.0,16948.0,0.15663415]
[1673042987234,0.3747,16949.0,16948.0,0.15680171]
[1673042993547,0.37455711,16949.0,16948.0,0.15680171]
[1673042997635,0.37455711,16949.0,16948.0,0.35680171]
[1673043021937,0.37455711,16949.0,16948.0,0.35730171]
[1673043026342,0.07385711,16949.0,16948.0,0.35730171]
[1673043038028,0.07385711,16949.0,16948.0,0.35707818]
[1673043057055,0.07385711,16949.0,16948.0,0.20997818]
[1673043083639,0.07385711,16949.0,16948.0,0.00997818]
[1673043085425,0.07385711,16949.0,16948.0,0.00975813]
[1673043124524,0.07369323,16949.0,16948.0,0.00975813]
[1673043134311,0.134,16949.0,16948.0,0.00120171]
[1673043165002,0.134,16949.0,16948.0,0.30190171]
[1673043167729,0.134,16949.0,16948.0,0.00120171]
[1673043172375,0.134,16949.0,16948.0,0.00112176]
[1673043180986,0.134,16949.0,16948.0,0.30182176]
[1673043185188,0.134,16949.0,16948.0,0.00112176]
[1673043225011,0.134,16949.0,16948.0,0.00092349]
[1673043236463,0.134,16949.0,16948.0,0.30162349]
[1673043237731,0.134,16949.0,16948.0,0.89222349]
[1673043240667,0.3007,16953.0,16948.0,0.980445]
[1673043240883,0.3007,16954.0,16950.0,0.8913]
[1673043241293,0.2,16955.0,16950.0,0.8913]
[1673043241716,0.3007,16954.0,16951.0,0.2]
[1673043241925,0.3467,16954.0,16951.0,0.7906]
[1673043242978,0.3007,16954.0,16951.0,0.7906]
[1673043243506,0.3467,16954.0,16951.0,0.8026]
[1673043244137,0.046,16954.0,16951.0,0.8026]
[1673043244970,0.046,16954.0,16952.0,0.3007]
[1673043245181,0.046,16954.0,16953.0,0.2]
[1673043246766,0.5007,16955.0,16953.0,0.2]
[1673043246969,0.046,16954.0,16953.0,0.212]
[1673043249380,0.042,16954.0,16953.0,0.211]
[1673043249801,0.5007,16955.0,16953.0,0.2]
[1673043250016,0.042,16954.0,16953.0,0.211]
[1673043258109,0.042,16954.0,16953.0,0.8016]
[1673043261897,0.042,16954.0,16953.0,1.1023]
[1673043265995,0.037,16954.0,16953.0,1.0973]
[1673043266519,0.022,16954.0,16953.0,1.0913]
[1673043276387,0.0206,16954.0,16953.0,1.17952151]
[1673043276821,0.019,16954.0,16953.0,1.17952151]
[1673043277976,0.019,16954.0,16953.0,1.0913]
[1673043278594,0.019,16954.0,16953.0,1.17952151]
[1673043279658,0.003,16954.0,16953.0,1.2303]
[1673043281549,0.003,16954.0,16953.0,1.0303]
[1673043282606,0.003,16954.0,16953.0,1.11852151]
[1673043283868,0.003,16954.0,16953.0,1.0303]
[1673043284078,0.003,16954.0,16953.0,1.11852151]
[1673043284707,0.003,16954.0,16953.0,0.52792151]
[1673043287012,0.003,16954.0,16953.0,0.4397]
[1673043287221,0.003,16954.0,16953.0,0.52792151]
[1673043287433,0.003,16954.0,16953.0,0.65977971]
[1673043288064,0.003,16954.0,16953.0,0.35907971]
[1673043288278,0.003,16954.0,16953.0,0.96047971]
[1673043292060,0.003,16954.0,16953.0,0.82862151]
[1673043292269,0.003,16954.0,16953.0,0.96047971]
[1673043294696,0.003,16954.0,16953.0,0.82862151]
[1673043298154,0.003,16954.0,16953.0,0.96047971]
[1673043300055,0.6007,16959.0,16953.0,0.96047971]
[1673043300367,0.6007,16959.0,16956.0,0.3007]
[1673043301733,0.6027,16959.0,16956.0,0.3097]
[1673043305303,0.302,16959.0,16956.0,0.3097]
[1673043305513,0.002,16959.0,16956.0,0.3097]
[1673043306358,0.002,16959.0,16956.0,0.39792151]
[1673043309818,0.002,16959.0,16956.0,0.3097]
[1673043312971,0.002,16959.0,16957.0,0.3007]
[1673043314134,0.3271,16960.0,16957.0,0.3007]
[1673043314344,0.002,16959.0,16957.0,0.3097]
[1673043314554,0.002,16959.0,16958.0,0.5906]
[1673043315601,0.3271,16960.0,16958.0,0.5906]
[1673043315820,0.002,16959.0,16958.0,0.5996]
[1673043317812,0.002,16959.0,16958.0,0.9003]
[1673043329359,0.002,16959.0,16958.0,0.8973]
[1673043331264,0.002,16959.0,16958.0,0.8913]
[1673043342823,0.002,16959.0,16955.0,0.82147971]
[1673043343032,0.002,16959.0,16955.0,0.68962151]
[1673043343244,0.002,16959.0,16957.0,0.3007]
[1673043343665,0.6278,16960.0,16957.0,0.3007]
[1673043344407,0.6278,16960.0,16957.0,0.3297]
[1673043344731,0.6278,16960.0,16957.0,0.3007]
[1673043345036,0.6298,16960.0,16957.0,0.3007]
[1673043363010,0.3007,16959.0,16956.0,0.3007]
[1673043364384,0.3007,16959.0,16956.0,0.4017]
[1673043366595,0.3271,16960.0,16956.0,0.101]
[1673043366802,0.3271,16960.0,16956.0,0.4017]
[1673043366803,0.3007,16959.0,16956.0,0.4017]
[1673043371528,0.3271,16960.0,16956.0,0.101]
[1673043371949,0.3007,16959.0,16956.0,0.4017]
[1673043374593,0.3271,16960.0,16956.0,0.101]
[1673043374901,0.3007,16959.0,16956.0,0.4017]
[1673043377730,0.3271,16960.0,16956.0,0.101]
[1673043377941,0.3007,16959.0,16956.0,0.4017]
[1673043382782,0.3271,16960.0,16956.0,0.101]
[1673043382992,0.3007,16959.0,16956.0,0.4017]
[1673043386781,0.3007,16959.0,16956.0,0.101]
[1673043386992,0.3007,16959.0,16956.0,0.4017]
[1673043390043,0.3007,16959.0,16956.0,0.40156525]
[1673043390778,0.6278,16960.0,16956.0,0.40156525]
[1673043390978,0.3271,16960.0,16956.0,0.10086525]
[1673043391192,0.6278,16960.0,16956.0,0.40156525]
[1673043392346,0.6278,16960.0,16956.0,0.3297]
[1673043396344,0.3007,16959.0,16956.0,0.3297]
[1673043397503,0.3007,16959.0,16956.0,0.4017]
[1673043397815,0.3271,16960.0,16956.0,0.4017]
[1673043398033,0.3007,16959.0,16956.0,0.4017]
[1673043400658,0.3271,16960.0,16956.0,0.4017]
[1673043401814,0.3271,16960.0,16956.0,0.3007]
[1673043402026,0.3271,16960.0,16956.0,0.3297]
[1673043406016,0.3271,16960.0,16956.0,0.6304]
[1673043407906,0.6278,16960.0,16957.0,0.3007]
[1673043408538,0.3271,16960.0,16957.0,0.3007]
[1673043408743,0.6278,16960.0,16957.0,0.3007]
[1673043409173,0.6308,16960.0,16957.0,0.3007]
[1673043412117,0.3301,16960.0,16955.0,0.08822151]
[1673043412426,0.6308,16960.0,16957.0,0.3007]
[1673043413259,0.6278,16960.0,16957.0,0.3007]
[1673043414430,0.6308,16960.0,16957.0,0.3007]
[1673043420004,0.3301,16960.0,16954.0,0.22007971]
[1673043420316,0.6308,16960.0,16957.0,0.3007]
[1673043421052,0.6278,16960.0,16957.0,0.3007]
[1673043421787,0.6308,16960.0,16957.0,0.3007]
[1673043424726,0.3301,16960.0,16957.0,0.3007]
[1673043427973,0.3301,16960.0,16958.0,0.3007]
[1673043430074,0.3291,16960.0,16958.0,0.3067]
[1673043433973,0.3291,16960.0,16958.0,0.006]
[1673043434184,0.3291,16960.0,16958.0,0.3067]
[1673043437440,0.3291,16960.0,16958.0,0.006]
[1673043437645,0.3291,16960.0,16958.0,0.3067]
[1673043438078,0.32894702,16960.0,16958.0,0.3067]
[1673043441536,0.32894702,16960.0,16958.0,0.006]
[1673043441748,0.32894702,16960.0,16958.0,0.3067]
[1673043455835,0.62964702,16960.0,16958.0,0.006]
[1673043456989,0.32894702,16960.0,16958.0,0.006]
[1673043457206,0.62964702,16960.0,16958.0,0.006]
[1673043460049,0.32894702,16960.0,16958.0,0.006]
[1673043460260,0.32894702,16960.0,16958.0,0.3067]
[1673043472341,0.32894702,16960.0,16958.0,0.006]
[1673043472547,0.32894702,16960.0,16958.0,0.3067]
[1673043474979,0.32894702,16960.0,16958.0,0.006]
[1673043475293,0.32894702,16960.0,16958.0,0.3067]
[1673043482650,0.32894702,16960.0,16958.0,0.006]
[1673043485386,0.62964702,16960.0,16958.0,0.006]
[1673043486438,0.62964702,16960.0,16958.0,0.00584824]
[1673043486970,0.32894702,16960.0,16958.0,0.00584824]
[1673043487373,0.62964702,16960.0,16958.0,0.00584824]
[1673043536913,0.62964702,16960.0,16958.0,0.00570986]
[1673043542171,0.93034702,16960.0,16958.0,0.00570986]
[1673043547835,0.32894702,16960.0,16958.0,0.00570986]
[1673043548056,0.6014,16959.0,16958.0,0.00570986]
[1673043549219,0.6014,16959.0,16954.0,0.3007]
[1673043549425,0.6044,16959.0,16954.0,0.3007]
[1673043550582,0.6044,16959.0,16953.0,1.0811]
[1673043550904,0.3007,16958.0,16954.0,0.3007]
[1673043551113,0.3007,16958.0,16954.0,0.4407]
[1673043551526,0.3007,16958.0,16954.0,0.3007]
[1673043552063,0.3007,16958.0,16954.0,0.4397]
[1673043568458,0.3007,16957.0,16954.0,0.4397]
[1673043569630,0.3007,16957.0,16954.0,0.3007]
[1673043569840,0.3007,16957.0,16954.0,0.4397]
[1673043573618,0.3007,16957.0,16954.0,0.139]
[1673043573829,0.3007,16957.0,16954.0,0.4397]
[1673043574558,0.3007,16957.0,16954.0,0.139]
[1673043574772,0.91754702,16960.0,16954.0,0.139]
[1673043575198,0.3007,16957.0,16954.0,0.4397]
[1673043575827,0.3007,16957.0,16954.0,0.3007]
[1673043576039,0.3007,16957.0,16954.0,0.4417]